Cogmind - Beta 13 @@@ ROGUE MODE // 2024.05.14 @ 19:51:07 Player: Sherlockkat Result: Self-destructed Performance ------------- Evolutions (3) 1500 Regions Visited (6) 1200 Robots Destroyed (51) 255 Value Destroyed (1590) 1590 Prototype IDs (5) 100 Alien Tech Used (0) 0 Bonus (0) 0 TOTAL SCORE: 4645 Bonus ------- None Cogmind --------- Core Integrity 313/700 Matter 300/300 Energy 82/100 System Corruption 0% Temperature Cool (0) Movement Core (350) Ox6 Location -7/Lower Caves Parts ------- > --- POWER (1) -------- (None) > --- PROPULSION (4) --- (None) > --- UTILITY (5) ------ Armored Scrap Engine Large Storage Unit > --- WEAPON (3) ------- (None) > --- INVENTORY (15) --- (None) Peak State ------------ > --- POWER ------------ Multi-Nuclear Core > --- PROPULSION ------- Wheeled Huge-Carbon Exoskeleton > --- UTILITY ---------- Armored Scrap Engine Cooling System Large Storage Unit Corruption Screen > --- WEAPON ----------- Heavy Ion Cannon Subdweller Shrapnel Launcher Laser Particle Construct/G > --- INVENTORY -------- (None) [Rating: 44] Favorites ----------- Power Light Ion Engine Engine Light Ion Engine Power Core Constructs Propulsion Constructs Treads Light Treads Wheel Constructs Utility Large Storage Unit Device Armored Scrap Engine Storage Large Storage Unit Processor Targeting Computer Weapon Light Assault Rifle Energy Gun Constructs Energy Cannon Heavy Ion Cannon Ballistic Gun Light Assault Rifle Ballistic Cannon Bore Cannon Launcher Subdweller Shrapnel Launcher Build | -11 -10 -10 -10 -9 -7 -7 ------- Run | Yrd Mat Min Sub Rec Fac Low Slots Evolved 6 | . . . . . 6 . Power . | . . . . . . . Propulsion 2 | . . . . . 2 . Utility 3 | . . . . . 3 . Weapon 1 | . . . . . 1 . Parts Attached 23 | 6 1 2 3 4 4 3 Power 3 | 1 . . 1 . 1 . Engine 2 | 1 . . 1 . . . Core 1 | . . . . . 1 . Reactor . | . . . . . . . Propulsion 6 | 2 . . 2 2 . . Treads 2 | 2 . . . . . . Leg . | . . . . . . . Wheel 4 | . . . 2 2 . . Hover . | . . . . . . . Flight . | . . . . . . . Utility 8 | 1 1 1 . 1 3 1 Device 3 | . . . . 1 1 1 Storage 3 | 1 1 . . . 1 . Processor 2 | . . 1 . . 1 . Hackware . | . . . . . . . Protection . | . . . . . . . Artifact . | . . . . . . . Weapon 6 | 2 . 1 . 1 . 2 Energy Gun . | . . . . . . . Energy Cannon 1 | . . . . . . 1 Ballistic Gun 3 | 2 . . . 1 . . Ballistic Cannon 1 | . . 1 . . . . Launcher 1 | . . . . . . 1 Special Weapon . | . . . . . . . Impact Weapon . | . . . . . . . Slashing Weapon . | . . . . . . . Piercing Weapon . | . . . . . . . Special Melee Weapon . | . . . . . . . Unidentified Prototypes . | . . . . . . . Parts Lost 19 | . . 1 2 3 7 6 Power 4 | . . . 1 . 2 1 Propulsion 9 | . . 1 1 2 2 3 Utility 2 | . . . . . 1 1 Weapon 4 | . . . . 1 2 1 Highest Loss Streak 4 | . . 1 2 2 4 3 To Critical Strikes . | . . . . . . . Average Slot Usage (%) 67 | . 99 88 88 72 50 46 Engine 7 | . 14 14 13 11 2 . Core 1 | . . . . . 2 3 Treads 7 | . 28 17 8 8 1 . Wheel 4 | . . . 9 9 1 6 Flight 1 | . . . . . 3 . Device 8 | . . . . 13 13 9 Storage 9 | . 27 20 14 . 6 7 Processor 3 | . . 7 14 . . 6 Energy Gun 5 | . . . . 7 8 3 Ballistic Gun 11 | . 28 27 14 8 7 . Ballistic Cannon 4 | . . . 14 11 . . Naked Turns . | . . . . . . . Heaviest Build 46 | 10 30 33 33 33 35 46 Greatest Support 57 | 40 40 40 20 38 57 42 Greatest Overweight (x) 9 | . . 1 3 3 2 9 Average Overweight (x) . | . . . 1 . 1 . Largest Inventory Capacity 15 | 8 15 15 15 15 15 15 Average Capacity 12 | 7 14 15 15 5 14 15 Most Carried 15 | 4 8 10 14 15 5 3 Average Carried 4 | 2 6 8 11 5 2 . Final Capacity 15 | 8 15 15 15 5 15 15 Final Carried 13 | 4 8 10 13 5 3 . Scrap Engine Consumption 70 | . . . . 29 41 . Constructs Created 8 | . . . . 4 4 . Constructs Modified 18 | . . . . 4 10 4 Class Distribution -------------------- 55% | Mutant 44% | Construct Dominant Class ---------------- Mutant | -10/Materials Mutant | -10/Mines Mutant | -10/Subcaves Construct | -9/Recycling Construct | -7/Factory Mutant | -7/Lower Caves Resources | -11 -10 -10 -10 -9 -7 -7 ----------- Run | Yrd Mat Min Sub Rec Fac Low Matter Collected 1057 | 276 46 37 88 374 101 135 Remotely . | . . . . . . . Salvage Created 2101 | 93 188 112 117 558 600 433 Parts 88 | 4 11 5 7 26 26 9 Haulers Intercepted . | . . . . . . . Recyclers Shooed 7 | . . . . 7 . . Parts Field Recycled . | . . . . . . . Retrieved Matter . | . . . . . . . Parts Self-Destructed 22 | . . . 5 . . 17 Prevented 1 | . . . . . . 1 Kills | -11 -10 -10 -10 -9 -7 -7 ------- Run | Yrd Mat Min Sub Rec Fac Low Combat Hostiles Destroyed 38 | . 4 2 5 3 15 9 Guns 23 | . 4 2 2 2 13 . Cannons 7 | . . . 3 1 . 3 AOE 8 | . . . . . 2 6 Classes Destroyed 11 | 2 1 1 3 2 1 1 Worker 2 | . . 1 . . 1 . Builder 1 | . . . . 1 . . Tunneler 2 | 2 . . . . . . Recycler 6 | 1 . . . 4 1 . Turret 2 | . . . 2 . . . Swarmer 13 | . . . 4 . 9 . Grunt 14 | . 4 2 . . 4 4 Brawler 1 | . . . . . . 1 Duelist 4 | . . . . . 1 3 Sentry 5 | . . . . 3 1 1 Subdweller 1 | . . . 1 . . . Decomposer 1 | . . . . . . 1 Packrat 1 | . . . . . . 1 Best Kill Streak 8 | 1 3 1 4 3 4 8 Combat Bots Only 8 | . 3 1 4 1 3 8 Max Kills in Single Turn 3 | 1 1 1 2 1 2 3 Gunslinging . | . . . . . . . Exploded 3 | . . . . . 2 3 Melee . | . . . . . . . Uniques/NPCs Destroyed . | . . . . . . . Combat | -11 -10 -10 -10 -9 -7 -7 -------- Run | Yrd Mat Min Sub Rec Fac Low Hostile Shots Fired 317 | . 24 15 67 22 147 42 Missed 94 | . 3 2 31 2 43 13 Damage Taken 3611 | . 359 181 276 294 1522 979 Core 558 | . 46 48 59 18 178 209 Absorbed by Shields . | . . . . . . . Regen/Repaired (Parts) 614 | . . . . 11 589 14 Core Remaining (%) 65 | 100 . . . 31 . . Volleys Fired 175 | 8 18 16 14 42 57 20 Largest 3 | 2 2 2 2 2 3 3 Hottest 149 | 40 40 40 77 101 114 149 Shots Fired 334 | 16 36 32 28 83 109 30 Gun 258 | 16 36 32 14 46 109 5 Cannon 71 | . . . 14 37 . 20 Launcher 5 | . . . . . . 5 Special . | . . . . . . . Kinetic 214 | 16 36 32 28 73 24 5 Thermal 78 | . . . . 10 43 25 Explosive . | . . . . . . . Electromagnetic 42 | . . . . . 42 . Robot Hit Streak 15 | 7 13 14 15 15 10 9 Robot Miss Streak 3 | 1 1 1 2 3 3 3 Penetration Max 1 | . . . 1 1 . . Secondary Targets 2 | . . . . . 2 . Max Gunslinging Chain 1 | . . . . . 1 . Shots Hit Robots 228 | 14 30 25 17 50 73 19 Core Hits 114 | 6 14 8 11 19 36 20 Critical Kills 8 | . . . 3 5 . . Critical Parts Destroyed 7 | . . . 1 6 . . Critical Strikes 21 | . . . 4 13 4 . Burn 3 | . . . . . 3 . Destroy 17 | . . . 4 13 . . Corrupt 1 | . . . . . 1 . Melee Attacks . | . . . . . . . Impact . | . . . . . . . Slashing . | . . . . . . . Piercing . | . . . . . . . Sneak Attacks . | . . . . . . . Combat Hostiles . | . . . . . . . Follow-up Attacks . | . . . . . . . Damage Inflicted 3975 | 115 246 196 279 704 1243 1192 Guns 1984 | 115 246 196 88 268 1058 13 Cannons 1081 | . . . 191 436 . 454 Explosions 910 | . . . . . 185 725 Melee . | . . . . . . . Ramming . | . . . . . . . Kinetic 2420 | 115 246 196 279 624 235 725 Thermal 1130 | . . . . 80 583 467 Explosive . | . . . . . . . Electromagnetic 425 | . . . . . 425 . Impact . | . . . . . . . Slashing . | . . . . . . . Piercing . | . . . . . . . Highest Corruption . | . . . . . . . Average Corruption . | . . . . . . . Corruption Purged . | . . . . . . . Corruption Blocked . | . . . . . . . Overload Shots . | . . . . . . . Overflow Damage 10 | . . . . 2 . 8 Projectiles 2 | . . . . 2 . . Explosions 8 | . . . . . . 8 Melee . | . . . . . . . Knockbacks 6 | . . . 1 5 . . Impact . | . . . . . . . Kinetic 5 | . . . 1 4 . . Secondary 1 | . . . . 1 . . Self-Inflicted Damage 247 | . . . . . 98 149 Shots 4 | . . . . . 1 3 Rammed . | . . . . . . . Targets Rammed . | . . . . . . . Kicked . | . . . . . . . Crushed . | . . . . . . . Highest Temperature 336 | . 34 18 22 298 149 336 Average Temperature 57 | . 14 10 12 78 33 99 Received Heat Transfer 912 | . 213 108 162 144 195 90 Effects 4 | . . . . 1 . 3 Interference 4 | . . . . 1 . 3 Siege Activations . | . . . . . . . Robots Corrupted . | . . . . . . . Combat Hostiles . | . . . . . . . Parts Fried . | . . . . . . . Impact Corruptions . | . . . . . . . Robots Melted . | . . . . . . . Combat Hostiles . | . . . . . . . Parts Melted 4 | . . . . . 4 . Heat Transferred 2283 | . . . . 259 1358 666 Parts Sabotaged . | . . . . . . . Parts Stolen . | . . . . . . . Parts Stripped . | . . . . . . . Power Chain Reactions . | . . . . . . . Alert | -11 -10 -10 -10 -9 -7 -7 ------- Run | Yrd Mat Min Sub Rec Fac Low Peak Influence 434 | 15 149 102 . 434 260 . Initial 344 | . 9 57 . 344 105 . Average 169 | 5 104 90 . 326 145 . Maximum Alert Level 2 | . . . . 2 1 . Low Security (%) 66 | 100 100 100 . . 81 . Level 1 28 | . . . . 79 18 . Level 2 5 | . . . . 20 . . Level 3 . | . . . . . . . Level 4 . | . . . . . . . Level 5 . | . . . . . . . High Security . | . . . . . . . Max Security . | . . . . . . . Squads Dispatched 2 | . . . . . 2 . Investigation . | . . . . . . . Extermination 1 | . . . . . 1 . Reinforcement . | . . . . . . . Assault . | . . . . . . . Garrison 1 | . . . . . 1 . Intercept . | . . . . . . . Searches Triggered . | . . . . . . . Construction Impeded . | . . . . . . . Haulers Reinforced . | . . . . . . . Active Scanning Responses . | . . . . . . . Cargo Convoy Interrupts . | . . . . . . . Stealth | -11 -10 -10 -10 -9 -7 -7 --------- Run | Yrd Mat Min Sub Rec Fac Low Distress Signals . | . . . . . . . Communications Jammed . | . . . . . . . Distress Signals . | . . . . . . . Times Spotted 72 | . 8 2 28 3 22 9 Peak Tracking Total 7 | . 4 2 6 1 4 7 Tactical Retreats 7 | . 1 . 4 . 2 . Traps | -11 -10 -10 -10 -9 -7 -7 ------- Run | Yrd Mat Min Sub Rec Fac Low Traps Triggered 2 | . 2 . . . . . Indirectly . | . . . . . . . Trap Hack Attempts . | . . . . . . . Triggered . | . . . . . . . Disarmed . | . . . . . . . Reprogrammed . | . . . . . . . Reused . | . . . . . . . Traps Extracted . | . . . . . . . Installed . | . . . . . . . Triggered 1 | . . . . . . 1 Machines | -11 -10 -10 -10 -9 -7 -7 ---------- Run | Yrd Mat Min Sub Rec Fac Low Machines Disabled 6 | . . . 2 2 1 1 Max in Single Turn 1 | . . . 1 1 1 1 Garrison Access 1 | . . . . . 1 . Machines Repaired . | . . . . . . . Machines Dismantled . | . . . . . . . Machines Sabotaged . | . . . . . . . Overloaded Fab Kills . | . . . . . . . Hacking | -11 -10 -10 -10 -9 -7 -7 --------- Run | Yrd Mat Min Sub Rec Fac Low Machines Accessed 8 | . 2 . . 4 2 . Terminals 4 | . 2 . . 2 . . Fabricators . | . . . . . . . Repair Stations . | . . . . . . . Recycling Units 3 | . . . . 2 1 . Scanalyzers . | . . . . . . . Garrison Access 1 | . . . . . 1 . Total Hacks 16 | . 6 . . 6 4 . Successful 6 | . 3 . . 2 1 . Failed 10 | . 3 . . 4 3 . Catastrophic 1 | . . . . 1 . . Database Lockouts . | . . . . . . . Manual 5 | . 3 . . 2 . . Terminals 9 | . 6 . . 3 . . Fabricators . | . . . . . . . Repair Stations . | . . . . . . . Recycling Units 5 | . . . . 3 2 . Scanalyzers . | . . . . . . . Garrison Access 2 | . . . . . 2 . Terminal Hacks 4 | . 3 . . 1 . . Emergency Access Points 1 | . 1 . . . . . Alert Level 2 | . 1 . . 1 . . Zone Layout 1 | . 1 . . . . . Fabricator Hacks . | . . . . . . . Repair Station Hacks . | . . . . . . . Recycling Unit Hacks 1 | . . . . 1 . . Retrieve Components 1 | . . . . 1 . . Scanalyzer . | . . . . . . . Garrison Access Hacks 1 | . . . . . 1 . Seal Access 1 | . . . . . 1 . Unauthorized Hacks . | . . . . . . . Terminals . | . . . . . . . Fabricators . | . . . . . . . Repair Stations . | . . . . . . . Recycling Units . | . . . . . . . Scanalyzers . | . . . . . . . Garrison Access . | . . . . . . . Data Cores Recovered . | . . . . . . . Used . | . . . . . . . Hacking Detections 5 | . 2 . . 3 . . Full Trace Events . | . . . . . . . Feedback Events . | . . . . . . . Feedback Blocked . | . . . . . . . Robot Schematics Acquired . | . . . . . . . Robots Built . | . . . . . . . Authchips . | . . . . . . . Time . | . . . . . . . Total Robot Build Rating . | . . . . . . . Part Schematics Acquired . | . . . . . . . Parts Built . | . . . . . . . Authchips . | . . . . . . . Time . | . . . . . . . Total Part Build Rating . | . . . . . . . Parts Repaired . | . . . . . . . Time . | . . . . . . . Parts Recycled . | . . . . . . . Recycled Matter . | . . . . . . . Retrieved Matter . | . . . . . . . Retrieved Components 3 | . . . . 3 . . Parts Scanalyzed . | . . . . . . . Part Schematics Acquired . | . . . . . . . Parts Damaged . | . . . . . . . Bothacking | -11 -10 -10 -10 -9 -7 -7 ------------ Run | Yrd Mat Min Sub Rec Fac Low Used RIF Installer . | . . . . . . . Robots Hacked . | . . . . . . . Non-combat . | . . . . . . . Combat . | . . . . . . . Robot Hacks Applied . | . . . . . . . Relay Couplers Released . | . . . . . . . Fabnet Peak Effective % . | . . . . . . . Robots Rewired . | . . . . . . . Allies Hacked . | . . . . . . . Hacks Repelled . | . . . . . . . Allies | -11 -10 -10 -10 -9 -7 -7 -------- Run | Yrd Mat Min Sub Rec Fac Low Total Allies . | . . . . . . . Largest Group . | . . . . . . . Highest-Rated Group . | . . . . . . . Highest-Rated Ally . | . . . . . . . Total Orders . | . . . . . . . Ally Attacks . | . . . . . . . Total Damage . | . . . . . . . Kills . | . . . . . . . Allies Corrupted . | . . . . . . . Allies Melted 1 | . . . . . . 1 Intel | -11 -10 -10 -10 -9 -7 -7 ------- Run | Yrd Mat Min Sub Rec Fac Low Robot Analysis Total . | . . . . . . . Derelict Logs Recovered 1 | . . . . . . 1 Drone Launches . | . . . . . . . Drone Recoveries . | . . . . . . . Exploration | -11 -10 -10 -10 -9 -7 -7 ------------- Run | Yrd Mat Min Sub Rec Fac Low Turns Passed 3577 | 213 305 378 355 717 1152 457 Spaces Moved 1777 | 115 153 132 186 459 461 271 Core 17 | 5 . . . 10 . 2 Treads 847 | 110 153 132 84 275 93 . Legs 91 | . . . . . 73 18 Wheels 638 | . . . 102 174 111 251 Hover . | . . . . . . . Flight 184 | . . . . . 184 . Fastest Speed 50 | 50 160 160 95 95 140 125 Average Speed 160 | 155 160 223 163 124 186 145 Slowest Speed 500 | 160 160 240 240 200 248 500 Overloaded Moves . | . . . . . . . Propulsion Burnouts . | . . . . . . . Robots Hopped . | . . . . . . . Cave-ins Triggered . | . . . . . . . Exploration Rate (%) 32 | 6 25 42 15 85 10 41 Regions Visited 6 Branch Regions 4 Pre-discovered Areas 1 | . . . . . . 1 Known Exits Taken . | . . . . . . . Unknown Exits Taken 6 | 1 1 1 1 1 1 . Scrap Searched 4 | . . 1 3 . . . Spaces Dug . | . . . . . . . Terrain Destroyed 126 | . . . 5 20 32 69 Melee . | . . . . . . . Projectile 27 | . . . 5 20 . 2 AOE 99 | . . . . . 32 67 Terrain Rammed . | . . . . . . . Walls Destroyed . | . . . . . . . Machines Disabled . | . . . . . . . Actions | -11 -10 -10 -10 -9 -7 -7 --------- Run | Yrd Mat Min Sub Rec Fac Low Total 2218 | 134 184 190 211 535 658 306 Wait 212 | 2 9 39 4 11 135 12 Move 1771 | 114 152 131 185 458 460 271 Hop . | . . . . . . . Pick Up 18 | 4 4 1 5 3 1 . Fast Attach 11 | 6 1 1 . 2 1 . Attach 10 | . . . 2 2 3 3 Detach 5 | . . 1 . 3 1 . Swap 2 | . . 1 1 . . . Drop 14 | . . . . 14 . . Fire 175 | 8 18 16 14 42 57 20 Melee . | . . . . . . . Ram . | . . . . . . . Kick . | . . . . . . . Crush . | . . . . . . . Escape Stasis . | . . . . . . . Rewire . | . . . . . . . Trap . | . . . . . . . Miscellaneous . | . . . . . . . Route ------- -11/Scrapyard -10/Materials -10/Mines (discovered 2 exits: [*Mat] / [*Sub]) -10/Subcaves -9/Recycling -7/Factory -7/Lower Caves History --------- Turn | Location | Event 42 | -11/Scrapyard | Discovered new exit (range 16) 214 | -11/Scrapyard | Entered Materials 305 | -10/Materials | Build established: Mutant 463 | -10/Materials | Discovered new exit (range 16) 519 | -10/Materials | Entered Mines 549 | -10/Mines | Met a Derelict bent on vengeance 553 | -10/Mines | Discovered new exit (range 9) 839 | -10/Mines | A weapon hastily lodged in a ceiling crevice suddenly fell to the ground 893 | -10/Mines | Discovered new exit (range 3) 897 | -10/Mines | Entered Subcaves 1216 | -10/Subcaves | Discovered new exit (range 12) 1223 | -10/Subcaves | Core integrity fell below 50% 1252 | -10/Subcaves | Entered Recycling 1255 | -9/Recycling | Found Scrap Engine 1811 | -9/Recycling | Build established: Construct 1811 | -9/Recycling | Discovered new exit (range 9) 1969 | -9/Recycling | Entered Factory 1969 | -7/Factory | Evolved 6 slots: Propulsion x2, Utility x3, Weapon x1 2211 | -7/Factory | Garrison activated, responded to threat 2963 | -7/Factory | Lost 4 parts (1n1u2w) 3050 | -7/Factory | Discovered new exit (range 13) 3121 | -7/Factory | Entered Lower Caves 3327 | -7/Lower Caves | Attracted the attention of an 0b10 outpost 3397 | -7/Lower Caves | Destroyed 8 combat bots 3397 | -7/Lower Caves | Lost 3 parts (1p1u1w) 3558 | -7/Lower Caves | Core integrity fell below 50% 3578 | -7/Lower Caves | Self-destructed Last Messages --------------- 03551_ G-47 Trooper destroyed. 03553_ Wheeled Huge-Carbon Exoskeleton destroyed. 03553_ Wheeled Huge-Carbon Exoskeleton core remains intact and functional. 03557_ Corruption Screen severed. 03561_ Imp. Heat Sink fries itself beyond repair. 03562_ Aluminum Leg fries itself beyond repair. 03564_ Wheeled Huge-Carbon Exoskeleton destroyed. 03564_ Wheeled Huge-Carbon Exoskeleton core remains intact and functional. 03566_ Wheeled Huge-Carbon Exoskeleton destroyed. 03566_ Arm. Scrap Engine damaged due to network destabilization (-7). 03568_ Lgt. Nuclear Core fries itself beyond repair. 03575_ Hvy. Ion Cannon severed. Map ----- +----------------------------------------------------+ | ??????????????????# # ## | | ?????????????????## # ##### ## | | ?????????????????# % # ##??# #### | | ?????????????????# ####???## ####?## | | ?????????????????# %% #????###????# | | ?????????????????# #???????????# | | ?????????????????# % ####????????#### | | ?????????????????## ##??????????? | | ??????????????????###### % #?????????## | | ???????????????????????# ##???????## | | ???????????????????????## #???????# | | ????????????????????????# # #???????# | | ????????????????????????### # ### ##??????## | | ??????????????????????????### #####??????## | | ?????????????????????????### % #???????### | | ?????????????????????????# ] #####?####### | | ?????????????????????????# ###???# | | ?????????????????????????# # #???# ## | | ???????????????####??????# # #??## ### #? | | ??????????????## ###???# #### #### #?# ##? | | ??????????????# #### #?## ## #?# ## ##?? | | ??????????????# ### ##?# ####??? | | ?????????????????## ## % #??# #?????? | | ??????????????????# ##### % % %#??% #?????? | | ??????????????????# ### %% #?? #?????? | | ??????????????????# ]@l ### %%#??###?????? | | ??????????????????# % ## #####??????????? | | ??????????????????# ###;######??????????????? | | ?????????????????# ##?###???????????????????? | | ??????????????# ##????????????????????????? | | ??????????????# #?????????????????????????? | | ??????????????## ?????????????????????????? | | ???????????????## ?????????????????????????? | | ????????????????# ?????????????????????????? | | ???????????????# ?????????????????????????? | | ??????????????# ?????????????????????????? | | ?????????????? ?????????????????????????? | | ?????????????# ?????????????????????????? | | ??????????????? ?????????????????????????? | | ????????????????? ? ?????????????????????????? | | ????????????????????? ???????????????????????????? | | ?????????????????????????????????????????????????? | | ?????????????????????????????????????????????????? | | ?????????????????????????????????????????????????? | | ?????????????????????????????????????????????????? | | ?????????????????????????????????????????????????? | | ?????????????????????????????????????????????????? | | ?????????????????????????????????????????????????? | | ?????????????????????????????????????????????????? | | ?????????????????????????????????????????????????? | +----------------------------------------------------+ Best States ------------- Heat Dissipation 56 Coolant Potential 50 Energy Generation 15 Energy Capacity 195 Matter Stores 300 Matter Capacity 300 Sight Range 16 Terrain Scan Density 10 Corruption Block 8 Evasion (%) 41 Targeting Accuracy 5 Recoil Reduction 3 Item Schematics ----------------- None Robot Schematics ------------------ None Fabricated ------------ Nothing Alien Tech Used ----------------- None Achievements -------------- None Challenges ------------ None Game ------ Seed AuthchipNeutrinoLoader Manual? 0 Play Time 00:27:06 Cumulative 395.2 hours Start 2024.05.14 @ 16:15:29 End 2024.05.14 @ 19:51:07 Sessions 3 Manual Loads 0 Difficulty Rogue Special Mode None Game No. 456 Rogue 456 Adventurer 0 Explorer 0 Win Type - Total 34 Types 22/3/8/1/0/0/0/0/0 Lore% 71 Gallery% 81 Achievement% 61 Wizard Run 0 Options --------- Layout 1 ASCII 1 Keyboard 1 Movement Numpad Keybinds 0 Fullscreen 1 Font 24/Smallcaps Map View 50x35 Zoom Use 0% Tactical HUD 1 Map Filters NONE Filters NONE Steam 1 RUN: bf6a5a35-ef33-4d79-86be-72e0479fdee7